[Event "Titled Tuesday Blitz July 25 Late 2023"]
[White "Andrej2004"]
[Black "Mickiewicz, Piotr"]
[BlackFideId "1114891"]
[WhiteElo "2587"]
[BlackElo "2432"]
[Result "0-1"]
[Round "5"]
[TimeControl "180+2"]
[Date "2023.07.25"]
[WhiteClock "0:00:24"]
[BlackClock "0:00:14"]
[Board "83"]

1. d4 {[%clk 0:02:55]}  d6 {[%clk 0:02:58]} 2. e4 {[%clk 0:02:53]}  g6 {[%clk 0:02:59]} 3. Nf3 {[%clk 0:02:52]}  Bg7 {[%clk 0:02:59]} 4. Nc3 {[%clk 0:02:53]}  Nf6 {[%clk 0:02:56]} 5. h3 {[%clk 0:02:51]}  c6 {[%clk 0:02:52]} 6. a4 {[%clk 0:02:50]}  a5 {[%clk 0:02:50]} 7. Be3 {[%clk 0:02:49]}  Na6 {[%clk 0:02:47]} 8. Bc4 {[%clk 0:02:48]}  O-O {[%clk 0:02:43]} 9. O-O {[%clk 0:02:48]}  Nb4 {[%clk 0:02:34]} 10. e5 {[%clk 0:02:46]}  Nfd5 {[%clk 0:02:31]} 11. Qe2 {[%clk 0:02:39]}  Nxe3 {[%clk 0:02:14]} 12. fxe3 {[%clk 0:02:36]}  dxe5 {[%clk 0:02:12]} 13. dxe5 {[%clk 0:02:36]}  Qc7 {[%clk 0:01:50]} 14. e6 {[%clk 0:02:21]}  Bxe6 {[%clk 0:01:35]} 15. Bxe6 {[%clk 0:02:19]}  fxe6 {[%clk 0:01:36]} 16. Qc4 {[%clk 0:02:17]}  Nd5 {[%clk 0:01:31]} 17. e4 {[%clk 0:02:17]}  b5 {[%clk 0:00:54]} 18. axb5 {[%clk 0:01:46]}  cxb5 {[%clk 0:00:54]} 19. Qb3 {[%clk 0:01:46]}  Qb6+ {[%clk 0:00:48]} 20. Kh1 {[%clk 0:01:45]}  Nxc3 {[%clk 0:00:48]} 21. bxc3 {[%clk 0:01:44]}  a4 {[%clk 0:00:44]} 22. Qb4 {[%clk 0:01:44]}  Rfc8 {[%clk 0:00:18]} 23. e5 {[%clk 0:01:39]}  Qc5 {[%clk 0:00:16]} 24. Qg4 {[%clk 0:01:35]}  Ra6 {[%clk 0:00:14]} 25. Qh4 {[%clk 0:01:30]}  h6 {[%clk 0:00:13]} 26. Qg4 {[%clk 0:01:28]}  Qc4 {[%clk 0:00:12]} 27. Qxg6 {[%clk 0:01:26]}  Rf8 {[%clk 0:00:11]} 28. Nd2 {[%clk 0:01:14]}  Qc8 {[%clk 0:00:10]} 29. Rxf8+ {[%clk 0:01:12]}  Qxf8 {[%clk 0:00:11]} 30. Rf1 {[%clk 0:01:12]}  Qb8 {[%clk 0:00:09]} 31. Nf3 {[%clk 0:00:49]}  a3 {[%clk 0:00:09]} 32. Nd2 {[%clk 0:00:36]}  a2 {[%clk 0:00:08]} 33. Nb3 {[%clk 0:00:36]}  Qxe5 {[%clk 0:00:08]} 34. Rd1 {[%clk 0:00:33]}  Ra8 {[%clk 0:00:06]} 35. h4 {[%clk 0:00:25]}  Qxc3 {[%clk 0:00:06]} 36. Qxe6+ {[%clk 0:00:24]}  Kh8 {[%clk 0:00:07]} 37. Qf5 {[%clk 0:00:22]}  a1=Q {[%clk 0:00:06]} 38. Nxa1 {[%clk 0:00:20]}  Rxa1 {[%clk 0:00:07]} 39. Qc8+ {[%clk 0:00:20]}  Kh7 {[%clk 0:00:07]} 40. Qf5+ {[%clk 0:00:21]}  Kg8 {[%clk 0:00:08]} 41. Qe6+ {[%clk 0:00:20]}  Kf8 {[%clk 0:00:08]} 42. Qf5+ {[%clk 0:00:19]}  Bf6 {[%clk 0:00:08]} 43. Rxa1 {[%clk 0:00:18]}  Qxa1+ {[%clk 0:00:09]} 44. Kh2 {[%clk 0:00:19]}  Qe5+ {[%clk 0:00:09]} 45. Qxe5 {[%clk 0:00:19]}  Bxe5+ {[%clk 0:00:10]} 46. Kh3 {[%clk 0:00:20]}  e6 {[%clk 0:00:10]} 47. Kg4 {[%clk 0:00:21]}  Kf7 {[%clk 0:00:10]} 48. Kh5 {[%clk 0:00:22]}  Kg7 {[%clk 0:00:11]} 49. g4 {[%clk 0:00:22]}  Bc3 {[%clk 0:00:11]} 50. g5 {[%clk 0:00:22]}  b4 {[%clk 0:00:11]} 51. gxh6+ {[%clk 0:00:21]}  Kh7 {[%clk 0:00:12]} 52. Kg5 {[%clk 0:00:22]}  e5 {[%clk 0:00:12]} 53. Kf5 {[%clk 0:00:22]}  Kxh6 {[%clk 0:00:12]} 54. Ke4 {[%clk 0:00:23]}  Kh5 {[%clk 0:00:13]} 55. Kd3 {[%clk 0:00:23]}  Kxh4 {[%clk 0:00:13]} 56. Ke4 {[%clk 0:00:24]}  Kg3 {[%clk 0:00:14]} 57. Kf5 {[%clk 0:00:24]}  Kf3 {[%clk 0:00:14]} 0-1


[Site "https://www.chess.com"]

[Event "Titled Tuesday Blitz July 25 Late 2023"]
[White "Rostomyan, Mikayel"]
[Black "Sztokbant, Bernardo Vainzoff"]
[WhiteFideId "13313754"]
[BlackFideId "2115956"]
[WhiteElo "2566"]
[BlackElo "2425"]
[Result "1/2-1/2"]
[Round "5"]
[TimeControl "180+2"]
[Date "2023.07.25"]
[WhiteClock "0:00:05"]
[BlackClock "0:00:03"]
[Board "86"]

1. d4 {[%clk 0:03:00]}  Nf6 {[%clk 0:02:58]} 2. Nf3 {[%clk 0:02:50]}  e6 {[%clk 0:02:59]} 3. c4 {[%clk 0:02:49]}  d5 {[%clk 0:02:57]} 4. g3 {[%clk 0:02:49]}  dxc4 {[%clk 0:02:56]} 5. Bg2 {[%clk 0:02:49]}  Be7 {[%clk 0:02:53]} 6. O-O {[%clk 0:02:47]}  O-O {[%clk 0:02:54]} 7. Qc2 {[%clk 0:02:45]}  a6 {[%clk 0:02:54]} 8. a4 {[%clk 0:02:44]}  Bd7 {[%clk 0:02:54]} 9. Qxc4 {[%clk 0:02:44]}  Bc6 {[%clk 0:02:54]} 10. Bg5 {[%clk 0:02:43]}  Nbd7 {[%clk 0:02:54]} 11. Nc3 {[%clk 0:02:35]}  a5 {[%clk 0:02:53]} 12. Bxf6 {[%clk 0:02:29]}  Nxf6 {[%clk 0:02:51]} 13. Ne5 {[%clk 0:02:29]}  Bxg2 {[%clk 0:02:51]} 14. Kxg2 {[%clk 0:02:30]}  c6 {[%clk 0:02:50]} 15. Rfd1 {[%clk 0:02:18]}  Qb6 {[%clk 0:02:43]} 16. Rd2 {[%clk 0:01:57]}  Rad8 {[%clk 0:02:42]} 17. Rad1 {[%clk 0:01:56]}  Bb4 {[%clk 0:02:39]} 18. Qb3 {[%clk 0:01:25]}  Qc7 {[%clk 0:02:35]} 19. Nc4 {[%clk 0:01:22]}  Nd5 {[%clk 0:02:31]} 20. e4 {[%clk 0:01:19]}  Nf6 {[%clk 0:02:23]} 21. e5 {[%clk 0:01:13]}  Nd5 {[%clk 0:02:20]} 22. Rd3 {[%clk 0:01:12]}  Be7 {[%clk 0:02:18]} 23. Ne4 {[%clk 0:01:06]}  Nb4 {[%clk 0:02:05]} 24. R3d2 {[%clk 0:01:05]}  Rd5 {[%clk 0:02:05]} 25. Ncd6 {[%clk 0:00:54]}  f5 {[%clk 0:01:54]} 26. Nc5 {[%clk 0:00:51]}  Bxd6 {[%clk 0:01:41]} 27. Nxe6 {[%clk 0:00:51]}  Qf7 {[%clk 0:01:39]} 28. Nxf8 {[%clk 0:00:32]}  Bxf8 {[%clk 0:01:40]} 29. Re2 {[%clk 0:00:31]}  Qe6 {[%clk 0:01:32]} 30. h4 {[%clk 0:00:28]}  Kf7 {[%clk 0:01:28]} 31. Qf3 {[%clk 0:00:27]}  Kg8 {[%clk 0:01:19]} 32. h5 {[%clk 0:00:26]}  Be7 {[%clk 0:01:10]} 33. Qf4 {[%clk 0:00:26]}  c5 {[%clk 0:00:58]} 34. Red2 {[%clk 0:00:19]}  h6 {[%clk 0:00:51]} 35. dxc5 {[%clk 0:00:13]}  Bg5 {[%clk 0:00:39]} 36. Rxd5 {[%clk 0:00:13]}  Bxf4 {[%clk 0:00:29]} 37. Rd8+ {[%clk 0:00:13]}  Kh7 {[%clk 0:00:29]} 38. gxf4 {[%clk 0:00:14]}  Qc4 {[%clk 0:00:21]} 39. R1d4 {[%clk 0:00:08]}  Qe2 {[%clk 0:00:20]} 40. Rf8 {[%clk 0:00:05]}  Nc6 {[%clk 0:00:15]} 41. Rd7 {[%clk 0:00:01]}  Qxh5 {[%clk 0:00:12]} 42. Rff7 {[%clk 0:00:01]}  Qg4+ {[%clk 0:00:10]} 43. Kf1 {[%clk 0:00:02]}  h5 {[%clk 0:00:06]} 44. e6 {[%clk 0:00:03]}  h4 {[%clk 0:00:05]} 45. e7 {[%clk 0:00:03]}  Nxe7 {[%clk 0:00:03]} 46. Rdxe7 {[%clk 0:00:04]}  Qd1+ {[%clk 0:00:02]} 47. Kg2 {[%clk 0:00:04]}  Qg4+ {[%clk 0:00:03]} 48. Kf1 {[%clk 0:00:04]}  Qd1+ {[%clk 0:00:03]} 49. Kg2 {[%clk 0:00:04]}  Qg4+ {[%clk 0:00:03]} 50. Kf1 {[%clk 0:00:05]} 1/2-1/2


[Site "https://www.chess.com"]

[Event "Titled Tuesday Blitz July 25 Late 2023"]
[White "Feng, Eric"]
[Black "Vega Gutierrez, Sabrina"]
[WhiteFideId "30952590"]
[BlackFideId "2219026"]
[WhiteElo "2560"]
[BlackElo "2418"]
[Result "0-1"]
[Round "5"]
[TimeControl "180+2"]
[Date "2023.07.25"]
[WhiteClock "0:01:18"]
[BlackClock "0:01:40"]
[Board "89"]

1. d4 {[%clk 0:03:00]}  d5 {[%clk 0:02:58]} 2. c4 {[%clk 0:03:01]}  e6 {[%clk 0:02:58]} 3. Nf3 {[%clk 0:03:01]}  c6 {[%clk 0:02:57]} 4. g3 {[%clk 0:03:00]}  dxc4 {[%clk 0:02:57]} 5. Bg2 {[%clk 0:02:58]}  b5 {[%clk 0:02:57]} 6. O-O {[%clk 0:02:58]}  Bb7 {[%clk 0:02:57]} 7. a4 {[%clk 0:02:59]}  a6 {[%clk 0:02:54]} 8. Nc3 {[%clk 0:02:54]}  Nf6 {[%clk 0:02:53]} 9. Qc2 {[%clk 0:02:49]}  Be7 {[%clk 0:02:47]} 10. e4 {[%clk 0:02:49]}  Nbd7 {[%clk 0:02:34]} 11. Rd1 {[%clk 0:02:37]}  O-O {[%clk 0:02:24]} 12. Bg5 {[%clk 0:02:20]}  h6 {[%clk 0:02:23]} 13. Bxf6 {[%clk 0:02:15]}  Nxf6 {[%clk 0:02:22]} 14. Ne5 {[%clk 0:02:08]}  Qc7 {[%clk 0:02:19]} 15. b3 {[%clk 0:02:07]}  b4 {[%clk 0:02:15]} 16. Ne2 {[%clk 0:02:03]}  c3 {[%clk 0:02:15]} 17. a5 {[%clk 0:02:02]}  c5 {[%clk 0:02:13]} 18. Nc4 {[%clk 0:02:02]}  cxd4 {[%clk 0:02:11]} 19. Nxd4 {[%clk 0:02:03]}  Rad8 {[%clk 0:02:06]} 20. e5 {[%clk 0:01:58]}  Bxg2 {[%clk 0:02:02]} 21. Kxg2 {[%clk 0:01:59]}  Nd5 {[%clk 0:01:57]} 22. Rd3 {[%clk 0:01:59]}  f6 {[%clk 0:01:48]} 23. Nxe6 {[%clk 0:01:55]}  Qc6 {[%clk 0:01:48]} 24. Nxd8 {[%clk 0:01:50]}  Ne3+ {[%clk 0:01:48]} 25. Kh3 {[%clk 0:01:18]}  Qg2+ {[%clk 0:01:48]} 26. Kh4 {[%clk 0:01:19]}  fxe5+ {[%clk 0:01:43]} 27. Kh5 {[%clk 0:01:18]}  Qh3+ {[%clk 0:01:40]} 28. Kg6 {[%clk 0:01:18]}  Qf5# {[%clk 0:01:40]} 0-1


[Site "https://www.chess.com"]

[Event "Titled Tuesday Blitz July 25 Late 2023"]
[White "Graif, William"]
[Black "Rakitic2010"]
[WhiteFideId "2609835"]
[WhiteElo "2558"]
[BlackElo "2417"]
[Result "0-1"]
[Round "5"]
[TimeControl "180+2"]
[Date "2023.07.25"]
[WhiteClock "0:00:05"]
[BlackClock "0:00:15"]
[Board "90"]

1. e4 {[%clk 0:03:00]}  Nf6 {[%clk 0:02:59]} 2. e5 {[%clk 0:02:56]}  Nd5 {[%clk 0:02:59]} 3. Nf3 {[%clk 0:02:51]}  d6 {[%clk 0:02:59]} 4. Bc4 {[%clk 0:02:44]}  Nb6 {[%clk 0:02:58]} 5. Bxf7+ {[%clk 0:02:44]}  Kxf7 {[%clk 0:02:57]} 6. e6+ {[%clk 0:02:45]}  Bxe6 {[%clk 0:02:46]} 7. Ng5+ {[%clk 0:02:42]}  Ke8 {[%clk 0:02:45]} 8. Nxe6 {[%clk 0:02:41]}  Qd7 {[%clk 0:02:45]} 9. Qg4 {[%clk 0:02:16]}  Nc6 {[%clk 0:02:42]} 10. Nc3 {[%clk 0:01:54]}  Nd8 {[%clk 0:02:32]} 11. Nxg7+ {[%clk 0:01:42]}  Bxg7 {[%clk 0:02:32]} 12. Qxg7 {[%clk 0:01:42]}  Rf8 {[%clk 0:02:30]} 13. d3 {[%clk 0:01:33]}  Qf5 {[%clk 0:02:15]} 14. Be3 {[%clk 0:01:20]}  Kd7 {[%clk 0:02:09]} 15. h3 {[%clk 0:00:57]}  Ne6 {[%clk 0:02:05]} 16. Qg4 {[%clk 0:00:51]}  Qe5 {[%clk 0:01:48]} 17. O-O-O {[%clk 0:00:50]}  Rg8 {[%clk 0:01:45]} 18. Qf3 {[%clk 0:00:43]}  c6 {[%clk 0:01:40]} 19. g3 {[%clk 0:00:43]}  Raf8 {[%clk 0:01:37]} 20. Qe4 {[%clk 0:00:43]}  Qa5 {[%clk 0:01:24]} 21. Qxh7 {[%clk 0:00:42]}  d5 {[%clk 0:01:19]} 22. Qh4 {[%clk 0:00:31]}  Rh8 {[%clk 0:01:12]} 23. Qg4 {[%clk 0:00:31]}  Rhg8 {[%clk 0:01:10]} 24. Qh4 {[%clk 0:00:29]}  Nc8 {[%clk 0:00:38]} 25. Kb1 {[%clk 0:00:25]}  Nd6 {[%clk 0:00:38]} 26. Qa4 {[%clk 0:00:24]}  Qxa4 {[%clk 0:00:32]} 27. Nxa4 {[%clk 0:00:24]}  d4 {[%clk 0:00:33]} 28. Bxd4 {[%clk 0:00:15]}  Nxd4 {[%clk 0:00:34]} 29. Nc5+ {[%clk 0:00:15]}  Kc8 {[%clk 0:00:32]} 30. c3 {[%clk 0:00:15]}  N4b5 {[%clk 0:00:21]} 31. Rd2 {[%clk 0:00:11]}  Nc7 {[%clk 0:00:19]} 32. Ne4 {[%clk 0:00:10]}  Nxe4 {[%clk 0:00:19]} 33. dxe4 {[%clk 0:00:11]}  Rd8 {[%clk 0:00:20]} 34. Rhd1 {[%clk 0:00:11]}  Rxd2 {[%clk 0:00:19]} 35. Rxd2 {[%clk 0:00:12]}  Ne6 {[%clk 0:00:19]} 36. Kc2 {[%clk 0:00:11]}  Ng5 {[%clk 0:00:19]} 37. h4 {[%clk 0:00:10]}  Nxe4 {[%clk 0:00:19]} 38. Re2 {[%clk 0:00:10]}  Rg4 {[%clk 0:00:18]} 39. f3 {[%clk 0:00:09]}  Nxg3 {[%clk 0:00:18]} 40. fxg4 {[%clk 0:00:08]}  Nxe2 {[%clk 0:00:18]} 41. Kd3 {[%clk 0:00:07]}  Nf4+ {[%clk 0:00:18]} 42. Ke4 {[%clk 0:00:08]}  Ng6 {[%clk 0:00:18]} 43. h5 {[%clk 0:00:08]}  Nf8 {[%clk 0:00:17]} 44. g5 {[%clk 0:00:06]}  Kd7 {[%clk 0:00:17]} 45. g6 {[%clk 0:00:04]}  Nxg6 {[%clk 0:00:09]} 46. hxg6 {[%clk 0:00:05]}  Ke6 {[%clk 0:00:09]} 47. g7 {[%clk 0:00:01]}  Kf7 {[%clk 0:00:10]} 48. Ke5 {[%clk 0:00:02]}  Kxg7 {[%clk 0:00:09]} 49. Ke6 {[%clk 0:00:03]}  Kf8 {[%clk 0:00:10]} 50. c4 {[%clk 0:00:03]}  Ke8 {[%clk 0:00:11]} 51. c5 {[%clk 0:00:04]}  Kd8 {[%clk 0:00:11]} 52. b3 {[%clk 0:00:04]}  b6 {[%clk 0:00:11]} 53. cxb6 {[%clk 0:00:04]}  axb6 {[%clk 0:00:12]} 54. b4 {[%clk 0:00:04]}  b5 {[%clk 0:00:10]} 55. a3 {[%clk 0:00:05]}  Ke8 {[%clk 0:00:11]} 56. Ke5 {[%clk 0:00:05]}  Kd7 {[%clk 0:00:11]} 57. Ke4 {[%clk 0:00:05]}  Kd6 {[%clk 0:00:12]} 58. Kd4 {[%clk 0:00:05]}  e5+ {[%clk 0:00:11]} 59. Ke4 {[%clk 0:00:06]}  Ke6 {[%clk 0:00:12]} 60. Ke3 {[%clk 0:00:06]}  Kd5 {[%clk 0:00:12]} 61. Kd3 {[%clk 0:00:07]}  e4+ {[%clk 0:00:12]} 62. Ke3 {[%clk 0:00:07]}  Ke5 {[%clk 0:00:13]} 63. Ke2 {[%clk 0:00:07]}  Kd4 {[%clk 0:00:14]} 64. Kd2 {[%clk 0:00:08]}  Kc4 {[%clk 0:00:13]} 65. Ke3 {[%clk 0:00:08]}  Kb3 {[%clk 0:00:14]} 66. Kxe4 {[%clk 0:00:09]}  Kxa3 {[%clk 0:00:14]} 67. Kd3 {[%clk 0:00:09]}  Kxb4 {[%clk 0:00:15]} 68. Kc2 {[%clk 0:00:05]}  c5 {[%clk 0:00:15]} 0-1


[Site "https://www.chess.com"]

[Event "Titled Tuesday Blitz July 25 Late 2023"]
[White "Dwilewicz, Katarzyna"]
[Black "Golubev, Mikhail"]
[WhiteFideId "1148486"]
[BlackFideId "14100983"]
[WhiteElo "2407"]
[BlackElo "2548"]
[Result "0-1"]
[Round "5"]
[TimeControl "180+2"]
[Date "2023.07.25"]
[WhiteClock "0:00:00"]
[BlackClock "0:00:03"]
[Board "91"]

1. e4 {[%clk 0:02:54]}  c5 {[%clk 0:02:59]} 2. Nf3 {[%clk 0:02:54]}  d6 {[%clk 0:02:58]} 3. d4 {[%clk 0:02:53]}  cxd4 {[%clk 0:02:58]} 4. Nxd4 {[%clk 0:02:54]}  Nf6 {[%clk 0:02:58]} 5. Nc3 {[%clk 0:02:55]}  g6 {[%clk 0:02:58]} 6. f3 {[%clk 0:02:52]}  Bg7 {[%clk 0:02:57]} 7. Be3 {[%clk 0:02:53]}  a6 {[%clk 0:02:56]} 8. Qd2 {[%clk 0:02:52]}  Nbd7 {[%clk 0:02:51]} 9. O-O-O {[%clk 0:02:51]}  h5 {[%clk 0:02:50]} 10. Be2 {[%clk 0:02:44]}  b5 {[%clk 0:02:44]} 11. Kb1 {[%clk 0:02:42]}  Bb7 {[%clk 0:02:44]} 12. Nb3 {[%clk 0:02:35]}  Rc8 {[%clk 0:02:36]} 13. Nd5 {[%clk 0:02:19]}  Nxd5 {[%clk 0:02:33]} 14. exd5 {[%clk 0:02:19]}  Nf6 {[%clk 0:02:33]} 15. Bd4 {[%clk 0:01:52]}  O-O {[%clk 0:02:23]} 16. Na5 {[%clk 0:01:35]}  Ba8 {[%clk 0:02:18]} 17. Nc6 {[%clk 0:01:35]}  Bxc6 {[%clk 0:02:13]} 18. dxc6 {[%clk 0:01:36]}  Rxc6 {[%clk 0:02:12]} 19. g4 {[%clk 0:01:28]}  Qc7 {[%clk 0:02:04]} 20. Bxf6 {[%clk 0:01:01]}  Bxf6 {[%clk 0:02:04]} 21. gxh5 {[%clk 0:01:02]}  Rc8 {[%clk 0:01:57]} 22. Bd3 {[%clk 0:01:01]}  g5 {[%clk 0:01:52]} 23. h4 {[%clk 0:00:56]}  Rc5 {[%clk 0:00:18]} 24. Rhg1 {[%clk 0:00:51]}  d5 {[%clk 0:00:11]} 25. hxg5 {[%clk 0:00:50]}  Bg7 {[%clk 0:00:10]} 26. h6 {[%clk 0:00:48]}  Bh8 {[%clk 0:00:10]} 27. g6 {[%clk 0:00:48]}  fxg6 {[%clk 0:00:09]} 28. Rxg6+ {[%clk 0:00:46]}  Kf7 {[%clk 0:00:08]} 29. Qg5 {[%clk 0:00:42]}  Qe5 {[%clk 0:00:08]} 30. Qxe5 {[%clk 0:00:26]}  Bxe5 {[%clk 0:00:08]} 31. Rg5 {[%clk 0:00:20]}  Bf6 {[%clk 0:00:08]} 32. Rh5 {[%clk 0:00:15]}  Rh8 {[%clk 0:00:08]} 33. h7 {[%clk 0:00:16]}  e6 {[%clk 0:00:07]} 34. Rg1 {[%clk 0:00:16]}  Rcc8 {[%clk 0:00:07]} 35. Bg6+ {[%clk 0:00:15]}  Ke7 {[%clk 0:00:07]} 36. Bd3 {[%clk 0:00:16]}  Rcf8 {[%clk 0:00:07]} 37. Rh6 {[%clk 0:00:16]}  Kd6 {[%clk 0:00:06]} 38. Rhg6 {[%clk 0:00:15]}  Ke7 {[%clk 0:00:06]} 39. Rg8 {[%clk 0:00:14]}  Kd6 {[%clk 0:00:05]} 40. Kc1 {[%clk 0:00:12]}  Ke7 {[%clk 0:00:04]} 41. c3 {[%clk 0:00:13]}  Kf7 {[%clk 0:00:04]} 42. Rxf8+ {[%clk 0:00:11]}  Kxf8 {[%clk 0:00:03]} 43. Kd2 {[%clk 0:00:09]}  Kf7 {[%clk 0:00:03]} 44. Ke3 {[%clk 0:00:09]}  Bg7 {[%clk 0:00:03]} 45. Bg6+ {[%clk 0:00:08]}  Kf6 {[%clk 0:00:03]} 46. f4 {[%clk 0:00:08]}  Bh6 {[%clk 0:00:02]} 47. Bd3 {[%clk 0:00:07]}  Bg7 {[%clk 0:00:01]} 48. Rg6+ {[%clk 0:00:08]}  Kf7 {[%clk 0:00:02]} 49. Rg2 {[%clk 0:00:06]}  Bf6 {[%clk 0:00:02]} 50. Bc2 {[%clk 0:00:05]}  Ke7 {[%clk 0:00:02]} 51. Bd3 {[%clk 0:00:05]}  Kf7 {[%clk 0:00:03]} 52. a3 {[%clk 0:00:04]}  Ke7 {[%clk 0:00:03]} 53. Rg6 {[%clk 0:00:03]}  Kf7 {[%clk 0:00:04]} 54. Rg2 {[%clk 0:00:04]}  Ke7 {[%clk 0:00:04]} 55. Rg8 {[%clk 0:00:02]}  Kf7 {[%clk 0:00:04]} 56. Rg1 {[%clk 0:00:01]}  Ke7 {[%clk 0:00:04]} 57. Rg2 {[%clk 0:00:02]}  Kf7 {[%clk 0:00:05]} 58. Bc2 {[%clk 0:00:02]}  Ke7 {[%clk 0:00:05]} 59. Bd3 {[%clk 0:00:02]}  Kf7 {[%clk 0:00:05]} 60. f5 {[%clk 0:00:03]}  e5 {[%clk 0:00:04]} 61. b3 {[%clk 0:00:03]}  Ke7 {[%clk 0:00:04]} 62. Bc2 {[%clk 0:00:03]}  Rd8 {[%clk 0:00:05]} 63. Bd3 {[%clk 0:00:04]}  Kf7 {[%clk 0:00:05]} 64. Rg6 {[%clk 0:00:03]}  Ke7 {[%clk 0:00:04]} 65. Rg2 {[%clk 0:00:04]}  Kf7 {[%clk 0:00:04]} 66. a4 {[%clk 0:00:04]}  bxa4 {[%clk 0:00:03]} 67. bxa4 {[%clk 0:00:05]}  a5 {[%clk 0:00:03]} 68. Rb2 {[%clk 0:00:05]}  Bg5+ {[%clk 0:00:03]} 69. Ke2 {[%clk 0:00:04]}  e4 {[%clk 0:00:03]} 70. Rb7+ {[%clk 0:00:04]}  Kf6 {[%clk 0:00:03]} 71. Bb5 {[%clk 0:00:04]}  Kxf5 {[%clk 0:00:04]} 72. Rf7+ {[%clk 0:00:04]}  Kg6 {[%clk 0:00:03]} 73. Ra7 {[%clk 0:00:03]}  Rh8 {[%clk 0:00:03]} 74. Rxa5 {[%clk 0:00:02]}  Rxh7 {[%clk 0:00:04]} 75. Be8+ {[%clk 0:00:02]}  Kf5 {[%clk 0:00:03]} 76. Rxd5+ {[%clk 0:00:03]}  Kf4 {[%clk 0:00:03]} 77. Rd7 {[%clk 0:00:03]}  Rh2+ {[%clk 0:00:04]} 78. Kf1 {[%clk 0:00:02]}  Ke3 {[%clk 0:00:04]} 79. Rf7 {[%clk 0:00:02]}  Ra2 {[%clk 0:00:03]} 80. Bb5 {[%clk 0:00:02]}  Ra1+ {[%clk 0:00:03]} 81. Kg2 {[%clk 0:00:03]}  Ra2+ {[%clk 0:00:03]} 82. Kg3 {[%clk 0:00:00]}  Bd8 {[%clk 0:00:03]} 0-1


[Site "https://www.chess.com"]

[Event "Titled Tuesday Blitz July 25 Late 2023"]
[White "Jaskolka, Tomasz"]
[Black "Haitin, Ilja"]
[WhiteFideId "1170791"]
[BlackFideId "4501764"]
[WhiteElo "2542"]
[BlackElo "2390"]
[Result "1-0"]
[Round "5"]
[TimeControl "180+2"]
[Date "2023.07.25"]
[WhiteClock "0:01:19"]
[BlackClock "0:01:03"]
[Board "92"]

1. e4 {[%clk 0:03:00]}  b6 {[%clk 0:02:59]} 2. d4 {[%clk 0:02:59]}  Bb7 {[%clk 0:02:59]} 3. Nc3 {[%clk 0:02:59]}  e6 {[%clk 0:02:59]} 4. Bd3 {[%clk 0:02:59]}  d6 {[%clk 0:02:44]} 5. Nf3 {[%clk 0:02:57]}  g6 {[%clk 0:02:42]} 6. O-O {[%clk 0:02:56]}  Bg7 {[%clk 0:02:42]} 7. a4 {[%clk 0:02:54]}  a6 {[%clk 0:02:40]} 8. Be3 {[%clk 0:02:52]}  Ne7 {[%clk 0:02:39]} 9. Qd2 {[%clk 0:02:51]}  h6 {[%clk 0:02:38]} 10. Rfe1 {[%clk 0:02:43]}  Nd7 {[%clk 0:02:38]} 11. Rad1 {[%clk 0:02:43]}  Nf6 {[%clk 0:02:38]} 12. h3 {[%clk 0:02:41]}  g5 {[%clk 0:02:35]} 13. e5 {[%clk 0:02:29]}  Nfd5 {[%clk 0:02:28]} 14. Nxd5 {[%clk 0:02:28]}  Bxd5 {[%clk 0:02:26]} 15. Be2 {[%clk 0:02:23]}  Nf5 {[%clk 0:02:20]} 16. c4 {[%clk 0:02:19]}  Bb7 {[%clk 0:02:13]} 17. exd6 {[%clk 0:02:01]}  Qxd6 {[%clk 0:02:04]} 18. d5 {[%clk 0:01:58]}  Nxe3 {[%clk 0:01:53]} 19. Qxe3 {[%clk 0:01:57]}  O-O {[%clk 0:01:48]} 20. dxe6 {[%clk 0:01:56]}  Qxe6 {[%clk 0:01:49]} 21. Qxe6 {[%clk 0:01:47]}  fxe6 {[%clk 0:01:50]} 22. Rd7 {[%clk 0:01:38]}  Rf7 {[%clk 0:01:47]} 23. Red1 {[%clk 0:01:38]}  Bc6 {[%clk 0:01:34]} 24. Rxf7 {[%clk 0:01:34]}  Kxf7 {[%clk 0:01:35]} 25. b3 {[%clk 0:01:35]}  Ke7 {[%clk 0:01:31]} 26. Nd4 {[%clk 0:01:33]}  Bb5 {[%clk 0:01:18]} 27. axb5 {[%clk 0:01:21]}  Bxd4 {[%clk 0:01:11]} 28. Rxd4 {[%clk 0:01:20]}  axb5 {[%clk 0:01:12]} 29. cxb5 {[%clk 0:01:20]}  Ra1+ {[%clk 0:01:09]} 30. Kh2 {[%clk 0:01:20]}  Rb1 {[%clk 0:01:10]} 31. Bc4 {[%clk 0:01:19]}  Rb2 {[%clk 0:01:09]} 32. Re4 {[%clk 0:01:19]}  Kf6 {[%clk 0:01:06]} 33. Rxe6+ {[%clk 0:01:19]}  Kg7 {[%clk 0:01:03]} 34. Rc6 {[%clk 0:01:19]} 1-0


[Site "https://www.chess.com"]

[Event "Titled Tuesday Blitz July 25 Late 2023"]
[White "Principe, Alexander"]
[Black "DampFalcon"]
[WhiteFideId "3804542"]
[WhiteElo "2535"]
[BlackElo "2383"]
[Result "1-0"]
[Round "5"]
[TimeControl "180+2"]
[Date "2023.07.25"]
[WhiteClock "0:00:57"]
[BlackClock "0:00:03"]
[Board "93"]

1. e4 {[%clk 0:02:57]}  c5 {[%clk 0:02:59]} 2. Nf3 {[%clk 0:02:55]}  g6 {[%clk 0:02:57]} 3. d4 {[%clk 0:02:54]}  cxd4 {[%clk 0:02:58]} 4. Nxd4 {[%clk 0:02:54]}  Nc6 {[%clk 0:02:57]} 5. Nc3 {[%clk 0:02:52]}  Bg7 {[%clk 0:02:55]} 6. Nb3 {[%clk 0:02:52]}  Nf6 {[%clk 0:02:51]} 7. Bd3 {[%clk 0:02:52]}  d6 {[%clk 0:02:50]} 8. O-O {[%clk 0:02:52]}  O-O {[%clk 0:02:50]} 9. Bg5 {[%clk 0:02:51]}  a6 {[%clk 0:02:50]} 10. a4 {[%clk 0:02:48]}  Be6 {[%clk 0:02:32]} 11. f3 {[%clk 0:02:41]}  Ne5 {[%clk 0:02:27]} 12. Be3 {[%clk 0:02:36]}  Nc4 {[%clk 0:02:22]} 13. Bxc4 {[%clk 0:02:32]}  Bxc4 {[%clk 0:02:23]} 14. Rf2 {[%clk 0:02:32]}  Rc8 {[%clk 0:02:00]} 15. Nd4 {[%clk 0:02:27]}  e5 {[%clk 0:01:46]} 16. Nb3 {[%clk 0:02:22]}  Qc7 {[%clk 0:01:29]} 17. Rd2 {[%clk 0:02:20]}  Rfd8 {[%clk 0:01:21]} 18. a5 {[%clk 0:02:20]}  Qc6 {[%clk 0:00:58]} 19. Ra4 {[%clk 0:01:43]}  Bb5 {[%clk 0:00:42]} 20. Rb4 {[%clk 0:01:33]}  Bc4 {[%clk 0:00:19]} 21. Rb6 {[%clk 0:01:28]}  Qc7 {[%clk 0:00:18]} 22. Rdxd6 {[%clk 0:01:08]}  Rxd6 {[%clk 0:00:16]} 23. Qxd6 {[%clk 0:01:09]}  Bxb3 {[%clk 0:00:14]} 24. cxb3 {[%clk 0:01:06]}  Qxd6 {[%clk 0:00:10]} 25. Rxd6 {[%clk 0:01:07]}  Kf8 {[%clk 0:00:06]} 26. b4 {[%clk 0:01:03]}  Ke7 {[%clk 0:00:06]} 27. Bc5 {[%clk 0:01:00]}  Nd7 {[%clk 0:00:04]} 28. Nd5+ {[%clk 0:01:00]}  Kd8 {[%clk 0:00:03]} 29. Nb6 {[%clk 0:00:58]}  Rc7 {[%clk 0:00:02]} 30. Nd5 {[%clk 0:00:56]}  Rc6 {[%clk 0:00:02]} 31. Bb6+ {[%clk 0:00:56]}  Kc8 {[%clk 0:00:01]} 32. Ne7+ {[%clk 0:00:56]}  Kb8 {[%clk 0:00:02]} 33. Nxc6+ {[%clk 0:00:56]}  bxc6 {[%clk 0:00:03]} 34. Rxd7 {[%clk 0:00:57]}  c5 {[%clk 0:00:03]} 35. bxc5 {[%clk 0:00:57]} 1-0


[Site "https://www.chess.com"]